[Event "POL Youth-ch U20 Girls 2020"]
[Site "Pokrzywna"]
[Date "2020.11.30"]
[Round "2.10"]
[White "Szczotka, Klara"]
[Black "Kroliczek, Gabriela"]
[Result "1/2-1/2"]
[ECO "B28"]
[WhiteElo "1928"]
[BlackElo "1911"]
[Annotator "ChessBase"]
[PlyCount "114"]
[EventDate "2020.11.29"]
[EventType "swiss"]
[EventCountry "POL"]
[SourceTitle "playchess.com"]
[Source "ChessBase"]
[SourceQuality "1"]
[TimeControl "40/5400+30:1800+30"]

1. e4 {[%emt 0:00:00]} c5 {[%emt 0:00:00]} 2. Nf3 {[%emt 0:00:00]} a6 {[%emt 0:00:00]} 3. c3 {[%emt 0:00:00]} e6 {[%emt 0:00:00]} 4. d4 {[%emt 0:00:00]} d5 {[%emt 0:00:00]} 5. exd5 {[%emt 0:05:18]} exd5 {[%emt 0:00:00]} 6. Bd3 {[%emt 0:00:15]} c4 {[%emt 0:00:00]} 7. Bc2 {[%emt 0:00:06]} Bd6 {[%emt 0:07:23]} 8. O-O {[%emt 0:00:21]} Nf6 {[%emt 0:00:40]} 9. Re1+ {[%emt 0:00:59]} Be6 {[%emt 0:00:04]} 10. Bg5 {[%emt 0:08:20]} O-O {[%emt 0:01:22]} 11. Ne5 Bc8 {[%emt 0:40:12]} 12. Qf3 {[%emt 0:05:40]} Be7 {[%emt 0:06:26]} 13. Nd2 {[%emt 0:05:38]} Be6 {[%emt 0:08:58]} 14. Nf1 {[%emt 0:08:51]} Ne8 {[%emt 0:10:35]} 15. Bxe7 {[%emt 0:02:29]} Qxe7 {[%emt 0:00:05]} 16. Nxc4 {[%emt 0:08:31]} Qf6 {[%emt 0:04:56]} 17. Qxf6 {[%emt 0:09:40]} Nxf6 {[%emt 0:00:03]} 18. Ne5 {[%emt 0:01:59]} Nc6 {[%emt 0:07:37]} 19. Ng3 {[%emt 0:04:10]} g6 {[%emt 0:01:19]} 20. Nd3 {[%emt 0:00:35]} Rad8 {[%emt 0:00:30]} 21. Nc5 {[%emt 0:04:10]} Bc8 {[%emt 0:00:06]} 22. Bd3 {[%emt 0:00:13]} Rfe8 {[%emt 0:00:33]} 23. Re2 {[%emt 0:04:55]} Kf8 {[%emt 0:01:09]} 24. Rae1 {[%emt 0:00:20]} Rxe2 {[%emt 0:01:01]} 25. Rxe2 {[%emt 0:00:05]} Re8 {[%emt 0:00:05]} 26. f3 {[%emt 0:00:49]} Rxe2 {[%emt 0:00:34]} 27. Nxe2 {[%emt 0:00:05]} Ke7 {[%emt 0:00:21]} 28. Kf2 {[%emt 0:00:04]} Kd6 {[%emt 0:00:07]} 29. Ke3 {[%emt 0:00:41]} Nd7 {[%emt 0:02:19]} 30. b4 {[%emt 0:08:32]} Ndb8 {[%emt 0:04:20]} 31. Nf4 {[%emt 0:01:40]} Nd7 {[%emt 0:01:07]} 32. g4 {[%emt 0:01:22]} Nf6 {[%emt 0:01:48]} 33. h4 {[%emt 0:02:14]} h6 {[%emt 0:00:23]} 34. a3 {[%emt 0:00:49]} b5 {[%emt 0:02:10]} 35. Bc2 {[%emt 0:00:15]} Ne8 {[%emt 0:00:21]} 36. Bb3 {[%emt 0:00:45]} Nc7 {[%emt 0:00:03]} 37. Nfd3 {[%emt 0:02:55]} g5 {[%emt 0:00:40]} 38. hxg5 {[%emt 0:01:26]} hxg5 {[%emt 0:00:04]} 39. Nf2 {[%emt 0:00:32]} Nd8 {[%emt 0:00:55]} 40. Nh3 {[%emt 0:00:00]} f6 {[%emt 0:00:00]} 41. Bd1 {[%emt 0:06:32]} Nf7 {[%emt 0:02:58]} 42. Nf2 {[%emt 0:08:35]} Ke7 {[%emt 0:00:23]} 43. Nh1 {[%emt 0:00:11]} Nd6 {[%emt 0:00:24]} 44. Be2 {[%emt 0:00:45]} Na8 {[%emt 0:01:31]} 45. a4 {[%emt 0:07:41]} Nb6 {[%emt 0:01:38]} 46. a5 {[%emt 0:05:20]} Na8 {[%emt 0:00:58]} 47. Ng3 {[%emt 0:00:17]} Nc7 {[%emt 0:01:55]} 48. Nh5 {[%emt 0:00:52]} Kf7 {[%emt 0:01:33]} 49. f4 {[%emt 0:00:21]} Nc4+ {[%emt 0:05:03]} 50. Bxc4 {[%emt 0:03:01]} bxc4 {[%emt 0:00:03]} 51. f5 {[%emt 0:00:26]} Nb5 {[%emt 0:00:26]} 52. Kd2 {[%emt 0:00:06]} Nd6 {[%emt 0:00:25]} 53. Ng3 {[%emt 0:01:15]} Ke7 {[%emt 0:00:48]} 54. Kc2 {[%emt 0:01:05]} Nb5 {[%emt 0:00:32]} 55. Nf1 {[%emt 0:02:15]} Kd6 {[%emt 0:01:24]} 56. Ne3 {[%emt 0:00:20]} Na3+ {[%emt 0:00:56]} 57. Kb2 {[%emt 0:01:05]} Nb5 {[%emt 0:00:06]} 1/2-1/2

[Event "POL Youth-ch U20 Girls 2020"]
[Site "Pokrzywna"]
[Date "2020.11.30"]
[Round "2.11"]
[White "Kulpa, Zuzanna"]
[Black "Karykowska, Anna"]
[Result "1/2-1/2"]
[ECO "E11"]
[WhiteElo "1806"]
[BlackElo "1979"]
[Annotator "RC"]
[PlyCount "216"]
[EventDate "2020.11.29"]
[EventType "swiss"]
[EventCountry "POL"]
[SourceTitle "playchess.com"]
[Source "ChessBase"]
[SourceQuality "1"]
[TimeControl "40/5400+30:1800+30"]

1. d4 {[%emt 0:00:00]} Nf6 {[%emt 0:00:00]} 2. c4 {[%emt 0:00:00]} e6 {[%emt 0:00:00]} 3. Nf3 {[%emt 0:00:00]} Bb4+ {[%emt 0:00:00]} 4. Bd2 {[%emt 0:00:00]} a5 {[%emt 0:00:06]} 5. g3 {[%emt 0:00:13]} O-O {[%emt 0:01:01]} 6. Bg2 {[%emt 0:00:12]} Qe7 {[%emt 0:05:20]} 7. O-O {[%emt 0:01:03]} Bxd2 {[%emt 0:01:03]} 8. Qxd2 {[%emt 0:00:29]} d6 {[%emt 0:00:52]} 9. Nc3 {[%emt 0:01:05]} Nbd7 {[%emt 0:01:47]} 10. Qc2 {[%emt 0:04:01]} Nb6 {[%emt 0:09:10]} 11. b3 {[%emt 0:05:19]} e5 {[%emt 0:05:33]} 12. d5 {[%emt 0:03:48]} Nbd7 {[%emt 0:09:43]} 13. a3 {[%emt 0:02:30]} Nc5 {[%emt 0:05:43]} 14. b4 {[%emt 0:00:46]} axb4 {[%emt 0:00:13]} 15. axb4 {[%emt 0:00:05]} Rxa1 {[%emt 0:00:06]} 16. Rxa1 {[%emt 0:00:03]} Na6 {[%emt 0:00:14]} 17. Rb1 {[%emt 0:03:23]} Nh5 {[%emt 0:05:15]} 18. e3 {[%emt 0:09:57]} f5 {[%emt 0:01:59]} 19. Qe2 {[%emt 0:03:09]} Nf6 {[%emt 0:04:58]} 20. Nd2 {[%emt 0:05:03]} e4 {[%emt 0:02:26]} 21. Nb5 {[%emt 0:04:56]} Ng4 {[%emt 0:02:02]} 22. Nd4 {[%emt 0:01:27]} Qf6 {[%emt 0:03:05]} 23. Bh3 {[%emt 0:04:45]} Ne5 {[%emt 0:03:13]} 24. f3 {[%emt 0:01:46]} exf3 {[%emt 0:02:27]} 25. N2xf3 {[%emt 0:00:07]} Qh6 {[%emt 0:02:33]} 26. Bg2 {[%emt 0:05:41]} Ng4 {[%emt 0:01:02]} 27. Nc2 {[%emt 0:00:27]} Re8 {[%emt 0:01:35]} 28. Re1 {[%emt 0:00:29]} Bd7 {[%emt 0:04:49]} 29. Qd3 {[%emt 0:06:19]} Nf6 {[%emt 0:07:52]} 30. Nfd4 {[%emt 0:03:46]} Ng4 {[%emt 0:02:08]} 31. Nf3 {[%emt 0:04:23]} Qf6 {[%emt 0:04:17]} 32. Nfd4 {[%emt 0:06:10]} Qh6 {[%emt 0:03:32]} 33. h3 {[%emt 0:03:11]} Ne5 {[%emt 0:00:47]} 34. Qf1 {[%emt 0:01:19]} Rf8 {[%emt 0:05:49]} 35. Ne6 {[%emt 0:00:04]} Bxe6 36. dxe6 c6 {[%emt 0:01:23]} 37. e7 {[%emt 0:08:19]} Re8 {[%emt 0:00:09]} 38. Qxf5 {[%emt 0:03:34]} Qg6 {[%emt 0:01:10]} 39. Qxg6 {[%emt 0:00:39]} hxg6 {[%emt 0:00:07]} 40. b5 {[%emt 0:00:00]} Nc5 {[%emt 0:00:00]} 41. bxc6 {[%emt 0:02:33]} Nxc6 {[%emt 0:04:54]} 42. Rd1 {[%emt 0:05:29]} Nxe7 {[%emt 0:05:04]} 43. Rxd6 {[%emt 0:00:24]} Nf5 {[%emt 0:03:29]} 44. Rd5 {[%emt 0:07:02]} b6 {[%emt 0:02:42]} 45. Kf2 {[%emt 0:02:32]} Ne4+ {[%emt 0:00:06]} 46. Bxe4 {[%emt 0:00:30]} Rxe4 47. g4 {[%emt 0:07:57]} Ne7 {[%emt 0:02:14]} 48. Rd8+ {[%emt 0:01:16]} Kf7 {[%emt 0:01:36]} 49. Nd4 {[%emt 0:00:31]} Re5 {[%emt 0:01:46]} 50. Ke2 {[%emt 0:02:23]} Rc5 {[%emt 0:08:19]} 51. Kd3 {[%emt 0:00:21]} g5 {[%emt 0:01:01]} 52. Rd7 {[%emt 0:02:10]} Ke8 {[%emt 0:01:09]} 53. Rb7 {[%emt 0:00:16]} Ng6 {[%emt 0:01:46]} 54. Rxb6 {[%emt 0:04:36]} Ne5+ {[%emt 0:01:31]} 55. Ke4 {[%emt 0:00:15]} Nxc4 {[%emt 0:00:31]} 56. Rb8+ {[%emt 0:03:00]} Kf7 {[%emt 0:00:24]} 57. Nf5 {[%emt 0:01:06]} Rc7 {[%emt 0:03:09]} 58. Kd5 {[%emt 0:01:34]} g6 {[%emt 0:02:49]} 59. Rb4 {[%emt 0:01:30]} Nd2 {[%emt 0:02:27]} 60. Nd6+ {[%emt 0:01:22]} Ke7 {[%emt 0:00:19]} 61. Rb8 {[%emt 0:01:52]} Nf1 {[%emt 0:01:07]} 62. Re8+ {[%emt 0:02:13]} Kd7 {[%emt 0:00:28]} 63. Re5 {[%emt 0:00:12]} Ra7 {[%emt 0:00:33]} 64. Nf7 {[%emt 0:00:59]} Ra3 {[%emt 0:00:32]} 65. Rxg5 {[%emt 0:01:06]} Ke7 {[%emt 0:00:30]} 66. Ne5 Ra5+ {[%emt 0:00:32]} 67. Kd4 {[%emt 0:01:09]} Ra4+ {[%emt 0:00:16]} 68. Nc4 {[%emt 0:00:14]} Nd2 {[%emt 0:00:24]} 69. Rxg6 {[%emt 0:00:52]} Nxc4 {[%emt 0:00:09]} 70. Rh6 {[%emt 0:00:35]} Nd6+ {[%emt 0:00:28]} 71. Kd3 {[%emt 0:00:07]} Ra3+ {[%emt 0:00:37]} 72. Kd4 {[%emt 0:00:09]} Ra4+ {[%emt 0:00:06]} 73. Kd3 {[%emt 0:00:48]} Ra3+ {[%emt 0:00:04]} 74. Ke2 {[%emt 0:00:48]} Nc4 {[%emt 0:00:22]} 75. Rh7+ {[%emt 0:00:26]} Kf6 {[%emt 0:00:31]} 76. Rh6+ {[%emt 0:00:07]} Kf7 {[%emt 0:01:34]} 77. Rh7+ {[%emt 0:00:04]} Kf6 {[%emt 0:00:13]} 78. h4 {[%emt 0:01:07]} Nxe3 {[%emt 0:01:04]} 79. g5+ {[%emt 0:00:08]} Kg6 {[%emt 0:00:37]} 80. Rh6+ {[%emt 0:01:10]} Kg7 {[%emt 0:00:16]} 81. Re6 {[%emt 0:00:24]} Nf5 {[%emt 0:00:21]} 82. Rb6 {[%emt 0:00:40]} Nxh4 {[%emt 0:00:17]} 83. Rc6 {[%emt 0:00:24]} Nf5 {[%emt 0:01:02]} 84. Rf6 {[%emt 0:00:22]} Ng3+ {[%emt 0:00:32]} 85. Kd1 Ne4 {[%emt 0:00:00]} 86. Rc6 {[%emt 0:01:12]} Nxg5 {[%emt 0:00:00]} 87. Rc7+ {[%emt 0:00:04]} Kf6 {[%emt 0:00:00]} 88. Rc6+ {[%emt 0:00:05]} Kf5 {[%emt 0:00:00]} 89. Kc2 {[%emt 0:00:15]} Ne6 {[%emt 0:00:10]} 90. Rc3 {[%emt 0:00:38]} Ra4 {[%emt 0:00:32]} 91. Kb3 {[%emt 0:00:32]} Re4 {[%emt 0:00:22]} 92. Kb2 {[%emt 0:00:45]} Nd4 {[%emt 0:00:18]} 93. Rc5+ {[%emt 0:00:58]} Kf4 {[%emt 0:00:06]} 94. Rc3 {[%emt 0:00:07]} Re2+ {[%emt 0:00:17]} 95. Kb1 {[%emt 0:00:12]} Ke4 {[%emt 0:00:19]} 96. Ra3 {[%emt 0:00:36]} Nb5 {[%emt 0:00:48]} 97. Rb3 {[%emt 0:00:36]} Nd6 {[%emt 0:00:31]} 98. Rb2 {[%emt 0:00:27]} Re1+ {[%emt 0:00:21]} 99. Kc2 {[%emt 0:00:51]} Nc4 {[%emt 0:00:11]} 100. Rb4 {[%emt 0:00:17]} Kd4 {[%emt 0:00:31]} 101. Kb3 {[%emt 0:00:16]} Re3+ {[%emt 0:02:51]} 102. Ka4 {[%emt 0:00:35]} Ra3+ {[%emt 0:00:59]} 103. Kb5 {[%emt 0:00:05]} Ra5+ {[%emt 0:00:09]} 104. Kc6 {[%emt 0:00:09]} Rc5+ {[%emt 0:00:26]} 105. Kd7 {[%emt 0:01:00]} Kd5 {[%emt 0:00:16]} 106. Rb7 {[%emt 0:00:36]} Nd6 {[%emt 0:01:27]} 107. Rb6 {[%emt 0:00:14]} Nb5 {[%emt 0:00:35]} 108. Rb7 {[%emt 0:00:28]} Ke5 {[%emt 0:00:33]} 1/2-1/2

[Event "POL Youth-ch U20 Girls 2020"]
[Site "Pokrzywna"]
[Date "2020.11.30"]
[Round "2.12"]
[White "Wolagiewicz, Kinga"]
[Black "Adamczyk, Zuzanna"]
[Result "0-1"]
[ECO "B06"]
[WhiteElo "1791"]
[BlackElo "1924"]
[Annotator "NA"]
[PlyCount "78"]
[EventDate "2020.11.29"]
[EventType "swiss"]
[EventCountry "POL"]
[SourceTitle "playchess.com"]
[Source "ChessBase"]
[SourceQuality "1"]
[TimeControl "40/5400+30:1800+30"]

1. e4 {[%emt 0:00:00]} g6 {[%emt 0:00:00]} 2. d4 {[%emt 0:00:00]} Bg7 {[%emt 0:00:00]} 3. Nf3 {[%emt 0:00:14]} d6 {[%emt 0:00:05]} 4. Bc4 {[%emt 0:01:21]} Nf6 {[%emt 0:01:13]} 5. Qe2 {[%emt 0:03:38]} O-O {[%emt 0:01:20]} 6. O-O {[%emt 0:00:21]} c6 {[%emt 0:02:06]} 7. Bg5 {[%emt 0:01:16]} h6 {[%emt 0:12:56]} 8. Bh4 {[%emt 0:02:11]} g5 {[%emt 0:02:39]} 9. Bg3 {[%emt 0:00:34]} Nh5 {[%emt 0:02:05]} 10. c3 {[%emt 0:03:55]} Nxg3 {[%emt 0:03:29]} 11. hxg3 {[%emt 0:00:17]} Bg4 {[%emt 0:02:57]} 12. Nbd2 {[%emt 0:01:23]} Nd7 {[%emt 0:01:57]} 13. Qe3 {[%emt 0:04:27]} e5 {[%emt 0:05:29]} 14. dxe5 {[%emt 0:02:38]} dxe5 {[%emt 0:01:04]} 15. Bb3 {[%emt 0:05:41]} Qe7 {[%emt 0:02:15]} 16. Nc4 {[%emt 0:03:41]} Nc5 {[%emt 0:03:56]} 17. Bc2 {[%emt 0:01:08]} b6 $14 {[%emt 0:03:45]} 18. Rfd1 {[%emt 0:10:44]} Nb7 {[%emt 0:02:38]} 19. Rd3 {[%emt 0:06:02]} b5 {[%emt 0:05:50]} 20. Na3 {[%emt 0:01:25]} Nc5 {[%emt 0:01:19]} 21. Rd2 {[%emt 0:01:46]} Be6 {[%emt 0:03:18]} 22. b4 {[%emt 0:06:58]} Nd7 {[%emt 0:02:49]} 23. Bb3 {[%emt 0:00:39]} Bxb3 {[%emt 0:04:41]} 24. axb3 {[%emt 0:00:07]} a5 {[%emt 0:01:48]} 25. Rad1 {[%emt 0:06:37]} Nf6 {[%emt 0:02:19]} 26. Nc2 {[%emt 0:00:45]} Qe6 {[%emt 0:02:04]} 27. bxa5 {[%emt 0:02:54]} Rxa5 {[%emt 0:03:47]} 28. Nb4 {[%emt 0:01:12]} Ra3 {[%emt 0:03:23]} 29. Rd6 {[%emt 0:10:32]} Qxb3 {[%emt 0:01:13]} 30. Nxe5 {[%emt 0:01:41]} Nd5 {[%emt 0:02:26]} 31. Qc1 {[%emt 0:05:29]} Nxc3 {[%emt 0:02:50]} 32. Kh2 {[%emt 0:02:02]} Nxd1 {[%emt 0:04:32]} 33. Nbxc6 {[%emt 0:00:41]} Nxf2 {[%emt 0:01:02]} 34. Ne7+ {[%emt 0:01:48]} Kh7 {[%emt 0:00:35]} 35. Nf3 {[%emt 0:00:37]} Ng4+ {[%emt 0:04:15]} 36. Kh3 {[%emt 0:00:36]} Nf2+ {[%emt 0:02:10]} 37. Kh2 {[%emt 0:00:10]} Qe3 {[%emt 0:01:09]} 38. Qc6 {[%emt 0:04:25]} Ra1 {[%emt 0:01:19]} 39. Ng1 {[%emt 0:02:32]} Rxg1 {[%emt 0:00:48]} 0-1

[Event "POL Youth-ch U20 Girls 2020"]
[Site "Pokrzywna"]
[Date "2020.11.30"]
[Round "2.13"]
[White "Siekanska, Maria"]
[Black "Siekanska, Zuzanna"]
[Result "1/2-1/2"]
[ECO "D14"]
[WhiteElo "1919"]
[BlackElo "1800"]
[Annotator "ChessBase"]
[PlyCount "66"]
[EventDate "2020.11.29"]
[EventType "swiss"]
[EventCountry "POL"]
[SourceTitle "playchess.com"]
[Source "ChessBase"]
[SourceQuality "1"]
[TimeControl "40/5400+30:1800+30"]

1. d4 d5 2. c4 Nf6 3. Nc3 c6 4. cxd5 cxd5 5. Bf4 Bf5 6. Nf3 Nc6 7. e3 e6 8. Bd3 Bxd3 9. Qxd3 Bd6 10. Bg3 a6 11. a3 O-O 12. Rc1 Rc8 13. O-O Qc7 14. Bxd6 Qxd6 15. Rc2 Rc7 16. Rfc1 Rfc8 17. Na4 Ne7 18. Rxc7 Rxc7 19. Rxc7 Qxc7 20. Qc3 Qxc3 21. Nxc3 b5 22. Kf1 Kf8 23. Ke2 Nc6 24. b4 Ke7 25. Ne1 Ne8 26. Nd3 Nd6 27. Nc5 Nb8 28. Kd3 Nc4 29. Nb1 Kd6 30. f3 Nb2+ 31. Kc2 Nc4 32. Kd3 Nb2+ 33. Kc2 Nc4 1/2-1/2

[Event "POL Youth-ch U20 Girls 2020"]
[Site "Pokrzywna"]
[Date "2020.11.30"]
[Round "2.14"]
[White "Hertlein, Irena"]
[Black "Pawicka, Magdalena"]
[Result "0-1"]
[ECO "E04"]
[WhiteElo "1893"]
[BlackElo "1762"]
[Annotator "NA"]
[PlyCount "126"]
[EventDate "2020.11.29"]
[EventType "swiss"]
[EventCountry "POL"]
[SourceTitle "playchess.com"]
[Source "ChessBase"]
[SourceQuality "1"]
[TimeControl "40/5400+30:1800+30"]

1. d4 Nf6 2. Nf3 e6 3. g3 d5 4. c4 dxc4 5. Bg2 Bd7 6. Ne5 Bc6 7. Nxc6 Nxc6 8. O-O Be7 9. e3 O-O 10. Nd2 Na5 11. Qa4 c5 12. dxc5 Bxc5 13. b4 cxb3 14. axb3 Nc6 15. Rd1 Qb6 16. Bb2 Be7 17. Nc4 Qb4 18. Qa2 Qb5 19. e4 e5 20. Bf1 Nb4 21. Qb1 Qc6 22. Nxe5 Qxe4 23. Qxe4 Nxe4 24. Rd7 Bc5 25. Rxb7 Bxf2+ 26. Kg2 Bb6 27. Ba3 Nc2 28. Bxf8 Nxa1 29. Ba3 Nc2 30. Bc1 Nd6 31. Rd7 Rd8 32. Rxd8+ Bxd8 33. Bd3 Ne1+ 34. Kf2 Nxd3+ 35. Nxd3 Bb6+ 36. Kf3 f6 37. Nf4 Kf7 38. Nd5 Bg1 39. Bf4 Nb5 40. b4 Ke6 41. Nc7+ Nxc7 42. Bxc7 Kd5 43. h3 Kc4 44. Bd6 Bd4 45. Bf8 g6 46. Kg4 Bc3 47. Be7 f5+ 48. Kg5 Bxb4 49. Bd8 Bd2+ 50. Kf6 a5 51. Kf7 a4 52. Be7 Bb4 53. Bf6 a3 54. Kg8 Bc3 55. Bxc3 Kxc3 56. Kxh7 a2 57. Kxg6 a1=Q 58. Kxf5 Kd4 59. h4 Qf1+ 60. Kg5 Ke5 61. h5 Qf5+ 62. Kh4 Kf6 63. g4 Qg5+ 0-1

[Event "POL Youth-ch U20 Girls 2020"]
[Site "Pokrzywna"]
[Date "2020.11.30"]
[Round "2.15"]
[White "Barwinska, Ewa"]
[Black "Mirowska, Oliwia"]
[Result "1/2-1/2"]
[ECO "B12"]
[WhiteElo "1731"]
[BlackElo "1820"]
[Annotator "NA"]
[PlyCount "107"]
[EventDate "2020.11.29"]
[EventType "swiss"]
[EventCountry "POL"]
[SourceTitle "playchess.com"]
[Source "ChessBase"]
[SourceQuality "1"]
[TimeControl "40/5400+30:1800+30"]

1. e4 c6 2. d4 g6 3. Nc3 Bg7 4. Nf3 d5 5. h3 dxe4 6. Nxe4 Nf6 7. Bd3 O-O 8. O-O Na6 9. c3 Bd7 10. Bg5 Nc7 11. Nxf6+ exf6 12. Bd2 Be6 13. c4 Qd7 14. Bc3 Rad8 15. Nd2 Rfe8 16. Qc2 f5 17. Nb3 b6 18. f4 a5 19. a4 Na6 20. Kh1 Nb4 21. Qd2 Nxd3 22. Qxd3 Qc8 23. Rac1 Qa6 24. Nd2 c5 25. b3 Bxd4 26. Bxd4 Rxd4 27. Qc2 Qb7 28. Rcd1 Qc7 29. Nf3 Rxf4 30. Qc3 Bc8 31. Rfe1 Rfe4 32. Ng5 Rxe1+ 33. Rxe1 Rxe1+ 34. Qxe1 Bb7 35. Qh4 h5 36. Qe1 Qd8 37. Qe3 Qd7 38. Qf4 f6 39. Qb8+ Kg7 40. Ne6+ Qxe6 41. Qxb7+ Kh6 42. Qf3 Qe4 43. Qd1 f4 44. Qd8 Qe1+ 45. Kh2 Qe5 46. Qd2 g5 47. Kh1 g4 48. hxg4 hxg4 49. g3 Qe3 50. Qh2+ Kg5 51. Qh4+ Kf5 52. Qh5+ Ke6 53. Qe8+ Kd6 54. Qd8+ 1/2-1/2

[Event "POL Youth-ch U20 Girls 2020"]
[Site "Pokrzywna"]
[Date "2020.12.01"]
[Round "3.1"]
[White "Sowa, Wiktoria"]
[Black "Antolak, Julia"]
[Result "0-1"]
[ECO "B90"]
[WhiteElo "2093"]
[BlackElo "2313"]
[Annotator "RC"]
[PlyCount "86"]
[EventDate "2020.11.29"]
[EventType "swiss"]
[EventCountry "POL"]
[SourceTitle "playchess.com"]
[Source "ChessBase"]
[SourceQuality "1"]
[TimeControl "40/5400+30:1800+30"]

1. e4 {[%emt 0:00:00]} c5 {[%emt 0:00:00]} 2. Nf3 {[%emt 0:00:00]} d6 {[%emt 0:00:00]} 3. d4 {[%emt 0:00:00]} cxd4 {[%emt 0:00:00]} 4. Nxd4 {[%emt 0:00:00]} Nf6 {[%emt 0:00:00]} 5. Nc3 {[%emt 0:00:21]} a6 {[%emt 0:00:00]} 6. h3 {[%emt 0:00:27]} e6 {[%emt 0:01:29]} 7. g4 {[%emt 0:00:31]} h6 {[%emt 0:00:39]} 8. Bg2 {[%emt 0:00:31]} Nc6 {[%emt 0:00:57]} 9. b3 {[%emt 0:01:57]} Be7 {[%emt 0:04:58]} 10. Bb2 {[%emt 0:00:25]} O-O {[%emt 0:02:39]} 11. Qd2 {[%emt 0:02:01]} Nxd4 {[%emt 0:03:11]} 12. Qxd4 {[%emt 0:01:42]} e5 {[%emt 0:00:13]} 13. Qd3 {[%emt 0:04:05]} b5 {[%emt 0:04:19]} 14. f4 {[%emt 0:15:44]} Nd7 {[%emt 0:06:49]} 15. O-O-O {[%emt 0:02:42]} exf4 {[%emt 0:02:39]} 16. Nd5 {[%emt 0:09:25]} Bg5 {[%emt 0:10:17]} 17. Kb1 {[%emt 0:00:49]} Bb7 {[%emt 0:12:08]} 18. Qd4 {[%emt 0:07:18]} Ne5 {[%emt 0:06:01]} 19. Rhf1 {[%emt 0:09:05]} Bxd5 {[%emt 0:09:45]} 20. Qxd5 {[%emt 0:01:18]} Ng6 {[%emt 0:02:12]} 21. e5 {[%emt 0:10:35]} dxe5 {[%emt 0:08:43]} 22. Qxa8 {[%emt 0:01:39]} Qxa8 {[%emt 0:00:03]} 23. Bxa8 {[%emt 0:00:06]} Rxa8 {[%emt 0:00:06]} 24. Rfe1 {[%emt 0:02:33]} f6 {[%emt 0:01:07]} 25. Rd7 {[%emt 0:03:20]} Bh4 {[%emt 0:04:26]} 26. Re4 {[%emt 0:05:07]} Nf8 {[%emt 0:04:36]} 27. Rd1 {[%emt 0:06:29]} Ne6 {[%emt 0:01:11]} 28. Bc1 {[%emt 0:04:15]} Re8 {[%emt 0:06:07]} 29. c4 {[%emt 0:03:08]} bxc4 {[%emt 0:02:02]} 30. Rxc4 {[%emt 0:00:38]} Bg3 {[%emt 0:01:19]} 31. a4 {[%emt 0:02:15]} Ng5 {[%emt 0:03:27]} 32. Rf1 {[%emt 0:03:00]} Nxh3 {[%emt 0:01:14]} 33. Rh1 {[%emt 0:00:02]} Nf2 {[%emt 0:00:48]} 34. Rf1 {[%emt 0:00:03]} Nxg4 {[%emt 0:01:05]} 35. Rd1 {[%emt 0:00:08]} Ne3 {[%emt 0:01:21]} 36. Bxe3 {[%emt 0:00:31]} fxe3 {[%emt 0:00:01]} 37. Rc2 {[%emt 0:00:24]} f5 {[%emt 0:00:20]} 38. Rd7 {[%emt 0:00:16]} e4 {[%emt 0:00:23]} 39. Ka2 {[%emt 0:00:32]} Be5 {[%emt 0:00:35]} 40. b4 {[%emt 0:00:00]} f4 {[%emt 0:00:00]} 41. b5 {[%emt 0:00:15]} axb5 {[%emt 0:01:09]} 42. axb5 {[%emt 0:00:02]} f3 {[%emt 0:00:13]} 43. b6 {[%emt 0:00:04]} e2 {[%emt 0:00:07]} 0-1

[Event "POL Youth-ch U20 Girls 2020"]
[Site "Pokrzywna"]
[Date "2020.12.01"]
[Round "3.14"]
[White "Zabrzanska, Weronika"]
[Black "Barwinska, Ewa"]
[Result "1-0"]
[ECO "B45"]
[WhiteElo "1849"]
[BlackElo "1731"]
[Annotator "NA RC"]
[PlyCount "77"]
[EventDate "2020.11.29"]
[EventType "swiss"]
[EventCountry "POL"]
[SourceTitle "playchess.com"]
[Source "ChessBase"]
[SourceQuality "1"]
[TimeControl "40/5400+30:1800+30"]

1. e4 c5 2. Nc3 Nc6 3. Nf3 e6 4. d4 cxd4 5. Nxd4 Nf6 6. Nxc6 bxc6 7. e5 Nd5 8. Nxd5 cxd5 9. Be3 Qc7 10. Bd4 Bc5 11. c3 Rb8 12. b3 Bxd4 13. Qxd4 Qa5 14. Bd3 Rxb3 15. O-O Rxc3 16. h4 Rxd3 17. Qxd3 Ba6 18. Qg3 O-O 19. Rfd1 Qa4 20. Qe3 Qxh4 21. Qxa7 Bb5 22. Rdb1 Qa4 23. Qc5 Bc6 24. Rb4 Qa6 25. Rab1 h6 26. Qc2 Qa7 27. Qb2 Kh7 28. Qc2+ Kg8 29. Qb3 Kh7 30. Qd3+ Kg8 31. R1b2 Rc8 32. Qg3 Rf8 33. Rg4 g6 34. Rbb4 Kh7 35. Rh4 Rh8 36. Qf4 Kg7 37. Qf6+ Kg8 38. Rhf4 d6 39. Rb8+ 1-0

[Event "POL Youth-ch U20 Girls 2020"]
[Site "Pokrzywna"]
[Date "2020.12.01"]
[Round "3.15"]
[White "Siekanska, Zuzanna"]
[Black "Hertlein, Irena"]
[Result "1/2-1/2"]
[ECO "E11"]
[WhiteElo "1800"]
[BlackElo "1893"]
[Annotator "NA RC"]
[PlyCount "70"]
[EventDate "2020.11.29"]
[EventType "swiss"]
[EventCountry "POL"]
[SourceTitle "playchess.com"]
[Source "ChessBase"]
[SourceQuality "1"]
[TimeControl "40/5400+30:1800+30"]

1. d4 Nf6 2. c4 e6 3. Nf3 Bb4+ 4. Nbd2 b6 5. a3 Bxd2+ 6. Qxd2 Bb7 7. e3 d6 8. Be2 Nbd7 9. O-O O-O 10. b4 Ne4 11. Qc2 f5 12. d5 Rf6 13. Nd4 Nf8 14. f3 Ng5 15. dxe6 f4 16. exf4 Ngxe6 17. Nxe6 Nxe6 18. Bd3 Nxf4 19. Bxh7+ Kh8 20. Bxf4 Rxf4 21. Be4 Bxe4 22. fxe4 Qf6 23. Rxf4 Qxf4 24. Qe2 Qe5 25. Re1 Rf8 26. Qe3 Qb2 27. Rf1 Rxf1+ 28. Kxf1 Qa1+ 29. Kf2 Qa2+ 30. Qe2 Qxa3 31. Qh5+ Kg8 32. Qd5+ Kh7 33. b5 a5 34. bxa6 Qxa6 35. g4 Qa2+ 1/2-1/2

[Event "POL Youth-ch U20 Girls 2020"]
[Site "Pokrzywna"]
[Date "2020.12.02"]
[Round "4.1"]
[White "Antolak, Julia"]
[Black "Rudzinska, Michalina"]
[Result "0-1"]
[ECO "B42"]
[WhiteElo "2313"]
[BlackElo "2189"]
[Annotator "RC"]
[PlyCount "65"]
[EventDate "2020.11.29"]
[EventType "swiss"]
[EventCountry "POL"]
[SourceTitle "playchess.com"]
[Source "ChessBase"]
[SourceQuality "1"]
[TimeControl "40/5400+30:1800+30"]

1. e4 {[%emt 0:00:00]} c5 {[%emt 0:00:00]} 2. Nf3 {[%emt 0:00:00]} e6 {[%emt 0:00:00]} 3. d4 {[%emt 0:00:00]} cxd4 {[%emt 0:00:00]} 4. Nxd4 {[%emt 0:00:00]} a6 {[%emt 0:00:00]} 5. Bd3 {[%emt 0:00:04]} Qc7 {[%emt 0:00:15]} 6. O-O {[%emt 0:00:32]} Nc6 {[%emt 0:00:16]} 7. Be3 {[%emt 0:03:55]} Nf6 {[%emt 0:00:16]} 8. f4 {[%emt 0:05:18]} Bc5 {[%emt 0:02:23]} 9. c3 {[%emt 0:03:10]} Qb6 {[%emt 0:08:19]} 10. Qe2 {[%emt 0:30:23]} Nxd4 {[%emt 0:03:32]} 11. cxd4 {[%emt 0:00:13]} Bxd4 {[%emt 0:00:10]} 12. Bxd4 {[%emt 0:00:05]} Qxd4+ {[%emt 0:00:06]} 13. Kh1 {[%emt 0:00:03]} b5 {[%emt 0:05:12]} 14. Nd2 {[%emt 0:08:26]} Bb7 {[%emt 0:17:13]} 15. e5 {[%emt 0:02:55]} Nd5 {[%emt 0:01:46]} 16. Ne4 {[%emt 0:03:18]} O-O {[%emt 0:01:59]} 17. Rad1 {[%emt 0:07:51]} Ne3 {[%emt 0:19:36]} 18. Nf6+ {[%emt 0:03:28]} Kh8 {[%emt 0:00:28]} 19. Be4 {[%emt 0:01:23]} Nxd1 {[%emt 0:11:00]} 20. Rxd1 {[%emt 0:00:20]} Qc4 {[%emt 0:01:04]} 21. Bd3 {[%emt 0:10:36]} Qxf4 {[%emt 0:01:19]} 22. Rf1 {[%emt 0:01:35]} Qh6 {[%emt 0:02:34]} 23. Nxh7 {[%emt 0:01:37]} Rfc8 {[%emt 0:00:30]} 24. Qg4 {[%emt 0:07:20]} Rc1 {[%emt 0:03:11]} 25. Ng5 {[%emt 0:00:04]} Rxf1+ {[%emt 0:00:06]} 26. Bxf1 {[%emt 0:00:02]} Kg8 {[%emt 0:01:55]} 27. Bd3 {[%emt 0:03:05]} Rc8 {[%emt 0:02:08]} 28. h3 {[%emt 0:00:04]} f6 {[%emt 0:02:55]} 29. Bh7+ {[%emt 0:07:13]} Kf8 {[%emt 0:00:08]} 30. exf6 {[%emt 0:00:28]} Qxf6 {[%emt 0:03:38]} 31. Qg3 {[%emt 0:00:10]} e5 {[%emt 0:02:57]} 32. Qa3+ {[%emt 0:01:43]} d6 {[%emt 0:00:45]} 33. Nf3 0-1